bitfinex-derivatives/quotes_SOLF0:USTF0_20250529
["timestamp","ask_amount","ask_price","bid_price","bid_amount"]
[1748547198113,5.978,167.25,167.22,5.9787]
[1748547198512,5.9783,167.24,167.21,38.5592]
[1748547199015,5.979,167.22,167.21,0.04515695]
[1748547200118,5.9805,167.18,167.15,38.5413]
[1748547200311,2.0405,167.25,167.15,38.5413]
[1748547200510,2.0405,167.25,167.15,32.56]
[1748547200910,0.04092185,167.22,167.18,0.0446331]
[1748547201112,32.56092185,167.22,167.12,32.52]
[1748547201318,32.56092185,167.22,167.08,1.9738]
[1748547201319,32.56092185,167.22,167.09,32.52]
[1748547201619,5.9824,167.13,167.1,5.9832]
[1748547201913,32.52,167.18,167.09,32.52]
[1748547202113,0.04064932,167.15,167.12,0.04083213]
[1748547202313,0.04074305,167.15,167.12,0.0407092]
[1748547203019,5.982,167.14,167.12,0.0407092]
[1748547203414,0.04074305,167.15,167.14,5.9818]
[1748547204819,32.52,167.24,167.13,32.52]
[1748547205521,5.9802,167.19,167.16,5.9809]
[1748547205825,6.02560053,167.19,167.16,6.02327865]
[1748547206015,0.04540053,167.19,167.17,5.9807]
[1748547206818,0.04540053,167.19,167.18,5.9804]
[1748547207515,0.04540053,167.19,167.16,0.04237865]
[1748547208024,6.02560053,167.19,167.16,0.04237865]
[1748547208218,0.04540053,167.19,167.16,0.04237865]
[1748547208821,0.04540053,167.19,167.18,5.9804]
[1748547210117,0.04540053,167.19,167.16,0.04237865]
[1748547210624,5.9807,167.17,167.16,0.04237865]
[1748547212323,0.04540053,167.19,167.16,0.04237865]
[1748547212827,0.04540053,167.19,167.18,5.9804]
[1748547214922,32.52,167.26,167.22,5.9787]
[1748547215126,32.52,167.29,167.22,5.9787]
[1748547215322,32.52,167.29,167.17,32.52]
[1748547215631,32.52,167.29,167.21,5.9791]
[1748547216022,0.02033541,167.27,167.23,0.03981172]
[1748547216521,5.9783,167.24,167.23,0.03981172]
[1748547217629,0.02033541,167.27,167.17,32.52]
[1748547217824,32.52,167.29,167.15,2.0839]
[1748547218026,32.52,167.29,167.15,8.0651]
[1748547218225,5.9806,167.18,167.15,5.9812]
[1748547218725,6.02555442,167.18,167.15,6.02528202]
[1748547219326,6.02555442,167.18,167.15,0.04408202]
[1748547219828,0.04495442,167.18,167.15,0.04408202]
[1748547220231,5.9811,167.16,167.15,0.04408202]
[1748547222132,5.9809,167.17,167.15,0.04408202]
[1748547222620,0.04495442,167.18,167.15,0.04408202]
[1748547222824,5.981,167.17,167.15,0.04408202]
[1748547223025,0.04495442,167.18,167.15,0.04408202]
[1748547223730,5.9811,167.16,167.15,0.04408202]
[1748547224323,5.9809,167.17,167.15,0.04408202]
[1748547225431,5.9811,167.16,167.15,0.04408202]
[1748547231434,0.04495442,167.18,167.08,34.5771]
[1748547231435,5.9832,167.11,167.08,34.5771]
[1748547232034,5.9827,167.12,167.09,5.9836]
[1748547232439,6.02605359,167.12,167.09,6.02708457]
[1748547232936,5.983,167.11,167.09,0.04348457]
[1748547234239,0.04335359,167.12,167.09,0.04348457]
[1748547234739,5.9831,167.11,167.09,0.04348457]
[1748547235439,5.9833,167.1,167.09,0.04348457]
[1748547235643,5.9833,167.1,166.96,17.95]
[1748547235644,0.04335359,167.12,167.03,32.48]
[1748547235850,32.48,167.11,167.02,40.4883]
[1748547236143,32.48,167.11,167.02,34.5024]
[1748547236544,5.9846,167.07,167.05,0.04539906]
[1748547236744,0.03940333,167.08,167.05,0.04539906]
[1748547237342,5.9847,167.06,167.05,0.04539906]
[1748547240036,34.5121,167.07,166.99,32.48]
[1748547240450,34.5121,167.07,167.0,5.9866]
[1748547240642,32.48,167.1,166.99,32.48]
[1748547241143,5.9857,167.04,167.03,0.0392175]
[1748547246742,32.53858745,167.06,166.94,38.4887]
[1748547246949,49.20765787,167.06,166.91,32.5]
[1748547247151,10.0,167.05,166.88,551.7224]
[1748547247450,11.9718,167.03,166.9,5.9903]
[1748547247646,34.4907,167.02,166.88,551.7224]
[1748547247849,0.04579321,166.98,166.95,0.04394311]
[1748547248248,5.9883,166.96,166.95,0.04394311]
[1748547251262,0.04579321,166.98,166.95,0.04394311]
[1748547251961,0.04579321,166.98,166.96,32.52]
[1748547252161,0.04579321,166.98,166.96,36.6034]
[1748547253468,0.04579321,166.98,166.95,0.04394311]
[1748547253658,5.9883,166.96,166.95,0.04394311]
[1748547256773,5.9883,166.96,166.84,4.1838]
[1748547256774,32.52,166.96,166.86,32.52]
[1748547257270,5.9907,166.9,166.86,32.52]
[1748547257772,0.03878828,166.9,166.86,32.56223736]
[1748547259867,0.03878828,166.9,166.87,5.9912]
[1748547260772,6.02928828,166.9,166.87,5.9912]
[1748547261073,0.03878828,166.9,166.87,5.9912]
[1748547262175,0.03878828,166.9,166.88,5.991]
[1748547262363,0.03878828,166.9,166.86,32.56223736]
[1748547262775,0.03878828,166.9,166.87,5.9913]
[1748547262968,0.03878828,166.9,166.86,32.56223736]
[1748547264070,0.03878828,166.9,166.88,5.9911]
[1748547264378,0.03878828,166.9,166.86,32.56223736]
[1748547264577,0.03878828,166.9,166.89,5.9908]
[1748547264984,6.0139,166.99,166.89,5.9908]
[1748547264985,32.46,167.02,166.96,5.9882]
[1748547265285,5.9871,167.0,166.94,32.46]
[1748547265576,32.46,167.06,166.95,34.4148]
[1748547265777,32.46,167.06,166.96,32.48]
[1748547266079,5.9869,167.0,166.99,0.04236146]
[1748547266267,0.0451795,167.02,166.99,0.04236146]
[1748547266469,6.0315795,167.02,166.99,0.04236146]
[1748547267073,5.9865,167.01,166.99,6.02946146]
[1748547267272,0.0451795,167.02,166.99,6.02946146]
[1748547267575,0.0451795,167.02,166.99,0.04236146]
[1748547267778,5.9868,167.0,166.99,0.04236146]
[1748547270196,5.9866,167.01,166.99,0.04236146]
[1748547270383,0.0451795,167.02,166.99,0.04236146]
[1748547274190,5.9868,167.0,166.99,0.04236146]
[1748547274587,32.46,167.0,166.88,32.46]
[1748547274888,2.0209,166.99,166.88,32.46]
[1748547275189,2.0209,166.99,166.89,5.9907]
[1748547275489,2.0209,166.99,166.88,32.46]
[1748547275676,2.0209,166.99,166.93,0.03840765]
[1748547275677,0.03870131,166.97,166.93,0.03840765]
[1748547276185,5.989,166.94,166.93,0.03840765]
[1748547278590,5.9908,166.89,166.88,32.46]
[1748547278985,32.46,166.96,166.88,32.46]
[1748547279589,0.03961373,166.94,166.9,0.04214798]
[1748547280388,5.9901,166.91,166.9,0.04214798]
[1748547298402,32.42,166.91,166.83,1.947]
[1748547299209,5.9926,166.84,166.83,1.947]
[1748547300404,5.9929,166.83,166.82,0.04161397]
[1748547300593,0.04586823,166.85,166.82,0.04161397]
[1748547300996,5.9928,166.84,166.82,0.04161397]
[1748547301303,0.04586823,166.85,166.82,0.04161397]
[1748547301505,6.03826823,166.85,166.82,0.04161397]
[1748547302010,5.9907,166.9,166.82,6.04161397]
[1748547302309,5.9907,166.9,166.8,34.398]
[1748547302310,32.42,166.95,166.83,2.055]
[1748547302492,5.9911,166.89,166.86,5.9918]
[1748547302804,32.42,166.95,166.86,5.9918]
[1748547302993,0.03987162,166.92,166.89,0.04517273]
[1748547303193,5.9906,166.9,166.89,0.04517273]
[1748547304101,32.42,166.91,166.81,32.42]
[1748547304505,5.9918,166.87,166.83,5.9929]
[1748547305001,5.9919,166.86,166.83,6.03675128]
[1748547305197,0.0413316,166.87,166.83,0.04385128]
[1748547306899,6.0330316,166.87,166.83,6.03655128]
[1748547307605,0.0413316,166.87,166.84,5.9926]
[1748547308101,0.0413316,166.87,166.83,0.04385128]
[1748547308704,0.0413316,166.87,166.85,5.9922]
[1748547308905,0.0413316,166.87,166.83,0.04385128]
[1748547309105,0.0413316,166.87,166.84,32.42]
[1748547309908,0.0413316,166.87,166.85,5.9921]
[1748547310310,0.0413316,166.87,166.84,32.42]
[1748547311705,5.9897,166.93,166.84,32.42]
[1748547311905,34.3341,167.0,166.84,32.42]
[1748547312107,559.9,167.03,166.87,16.70234576]
[1748547312316,559.9,167.03,166.88,38.4474]
[1748547312506,32.42,167.03,166.91,16.70234576]
[1748547312707,0.03900937,166.99,166.95,0.03912025]
[1748547314010,5.9876,166.98,166.95,0.03912025]
[1748547314207,0.03900937,166.99,166.95,0.03912025]
[1748547314615,0.03900937,166.99,166.88,6.0274]
[1748547314809,32.42,166.98,166.88,3.9293]
[1748547315113,4.099,166.97,166.85,556.1519]
[1748547315310,4.099,166.97,166.85,550.16]
[1748547315509,4.099,166.97,166.86,5.9918]
[1748547315706,0.04179517,166.93,166.9,0.04463858]
[1748547316111,5.9902,166.91,166.9,0.04463858]
[1748547316608,0.04179517,166.93,166.9,6.03483858]
[1748547316815,0.04179517,166.93,166.9,0.04463858]
[1748547317409,32.42,167.0,166.9,6.04663858]
[1748547317609,2.0221,167.04,166.9,6.04663858]
[1748547317610,32.42,167.03,166.9,6.002]
[1748547317810,5.9873,166.99,166.94,5.9889]
[1748547318314,6.02898188,166.98,166.95,0.04533065]
[1748547318703,0.04138188,166.98,166.95,0.04533065]
[1748547319405,5.9883,166.96,166.95,0.04533065]
[1748547320212,5.9883,166.96,166.95,3.065e-05]
[1748547320419,5.98,166.96,166.86,3.9886]
[1748547320716,34.4673,166.95,166.86,3.9886]
[1748547320909,5.99,166.92,166.86,3.9886]
[1748547321105,34.4673,166.95,166.86,3.9886]
[1748547321316,0.04301519,166.92,166.89,0.04531811]
[1748547323114,5.9905,166.9,166.89,0.04531811]
[1748547324515,5.9905,166.9,166.85,32.34]
[1748547324516,5.9905,166.9,166.85,38.332]
[1748547325317,6.03301519,166.92,166.86,5.9919]
[1748547325512,0.04301519,166.92,166.87,0.03797685]
[1748547325820,5.9903,166.91,166.87,0.03797685]
[1748547326816,0.04301519,166.92,166.87,0.03797685]
[1748547327217,0.04301519,166.92,166.9,5.9902]
[1748547327416,0.04301519,166.92,166.9,32.34]
[1748547328716,6.03291519,166.92,166.9,32.34]
[1748547328915,0.04301519,166.92,166.9,32.34]
[1748547329115,0.04301519,166.92,166.91,5.9901]
[1748547330130,2.0673,167.0,166.9,32.34]
[1748547330923,0.0444595,166.97,166.93,0.04084861]
[1748547331431,6.0327595,166.97,166.93,0.04084861]
[1748547331626,0.0444595,166.97,166.93,0.04084861]
[1748547332534,6.0325595,166.97,166.93,0.04084861]
[1748547333228,5.9883,166.96,166.93,0.04084861]
[1748547333534,0.0444595,166.97,166.93,0.04084861]
[1748547333731,0.0444595,166.97,166.94,32.34]
[1748547334132,32.34,167.04,166.97,5.9877]
[1748547334327,32.34,167.07,166.95,3.9306]
[1748547334627,5.9868,167.01,166.95,3.9306]
[1748547334828,5.9868,167.01,166.96,5.9881]
[1748547335228,0.04034925,167.0,166.97,0.0459252]
[1748547336034,5.9873,166.99,166.97,0.0459252]
[1748547336539,5.9876,166.98,166.97,0.0459252]
[1748547341542,5.9874,166.99,166.97,0.0459252]
[1748547341838,0.04034925,167.0,166.97,0.0459252]
[1748547342028,6.02744925,167.0,166.97,0.0459252]
[1748547342232,0.04034925,167.0,166.97,0.0459252]
[1748547343548,5.9876,166.99,166.97,0.0459252]
[1748547344146,5.9876,166.98,166.97,0.0459252]
[1748547344846,0.04034925,167.0,166.97,0.0459252]
[1748547345547,0.04034925,167.0,166.98,5.9874]
[1748547346551,0.04034925,167.0,166.97,0.0459252]
[1748547346945,6.02724925,167.0,166.97,6.0337252]
[1748547347145,0.04034925,167.0,166.97,0.0459252]
[1748547347948,0.04034925,167.0,166.91,32.32]
[1748547348251,0.04034925,167.0,166.88,32.32]
[1748547348451,14.0322,167.01,166.88,32.32]
[1748547348452,2.059,167.01,166.88,32.32]
[1748547348753,2.059,167.01,166.88,38.311]
[1748547348754,11.9738,167.0,166.88,38.311]
[1748547348951,0.04486918,166.96,166.92,0.03956214]
[1748547349852,5.9894,166.93,166.92,0.03956214]
[1748547350058,32.32,166.94,166.85,549.94]
[1748547350356,5.9909,166.89,166.85,32.32]
[1748547350556,32.32,166.94,166.85,32.32]
[1748547350858,5.9907,166.9,166.85,38.312]
[1748547351152,0.04028909,166.91,166.88,0.04512664]
[1748547353048,6.03068909,166.91,166.88,0.04512664]
[1748547353251,0.04028909,166.91,166.88,0.04512664]
[1748547353655,5.9907,166.9,166.88,0.04512664]
[1748547353856,0.04028909,166.91,166.88,0.04512664]
[1748547354256,5.9908,166.89,166.88,0.04512664]
[1748547354645,0.04028909,166.91,166.88,0.04512664]
[1748547354851,5.9906,166.9,166.88,0.04512664]
[1748547355251,0.04028909,166.91,166.88,0.04512664]
[1748547356152,5.9905,166.9,166.88,0.04512664]
[1748547356555,0.04028909,166.91,166.88,0.04512664]
[1748547356753,5.9909,166.89,166.88,0.04512664]
[1748547357258,5.9907,166.9,166.88,0.04512664]
[1748547357653,0.04028909,166.91,166.88,0.04512664]
[1748547358353,5.9907,166.9,166.88,0.04512664]
[1748547360161,5.9909,166.89,166.88,0.04512664]
[1748547360359,0.04028909,166.91,166.88,0.04512664]
[1748547360761,5.9909,166.89,166.88,0.04512664]
[1748547361565,5.9924,166.85,166.81,4.0106]
[1748547361855,1.9789,166.9,166.81,2.0404]
[1748547362056,5.9041,166.9,166.8,32.28]
[1748547362266,5.9041,166.9,166.77,551.8514]
[1748547362460,5.993,166.83,166.82,0.0458719]
[1748547362663,0.04484131,166.85,166.77,32.28]
[1748547362965,0.04484131,166.85,166.74,32.28]
[1748547363162,32.28,166.86,166.74,32.28]
[1748547363569,5.9955,166.77,166.74,32.28]
[1748547363868,0.04078513,166.77,166.74,32.31951943]
[1748547365369,6.03598513,166.77,166.74,32.31951943]
[1748547365566,0.04078513,166.77,166.74,32.31951943]
[1748547365964,6.03608513,166.77,166.74,32.31951943]
[1748547366354,0.04078513,166.77,166.74,32.31951943]
[1748547366860,0.04078513,166.77,166.74,0.03951943]
[1748547369270,5.9959,166.75,166.74,0.03951943]
[1748547370069,0.04078513,166.77,166.68,32.28]
[1748547370365,3.9299,166.77,166.66,3.9663]
[1748547370771,30.63224576,166.77,166.65,32.28]
[1748547371072,0.04212195,166.73,166.69,0.03814307]
[1748547371270,5.9977,166.7,166.69,0.03814307]
[1748547373374,32.3,166.72,166.69,0.03814307]
[1748547374165,0.04212195,166.73,166.69,0.03814307]
[1748547374369,6.03902195,166.73,166.69,0.03814307]
[1748547374772,0.04212195,166.73,166.69,0.03814307]
[1748547375174,0.04212195,166.73,166.72,5.9971]
[1748547375474,0.04212195,166.73,166.7,32.3]
[1748547375871,0.04212195,166.73,166.69,0.03814307]
[1748547376066,5.9973,166.72,166.69,0.03814307]
[1748547376668,5.9975,166.71,166.69,0.03814307]
[1748547376972,0.04212195,166.73,166.69,0.03814307]
[1748547377174,2.01392195,166.73,166.69,0.03814307]
[1748547377573,5.9978,166.7,166.69,0.03814307]
[1748547378869,5.9978,166.7,166.69,4.307e-05]
[1748547380367,38.2978,166.7,166.69,4.307e-05]
[1748547380574,6.0,166.64,166.61,32.3]
[1748547381266,6.0004,166.63,166.6,4.0461]
[1748547381466,32.3,166.7,166.6,4.0461]
[1748547381670,0.04442454,166.67,166.63,0.02542141]
[1748547382173,6.0001,166.64,166.63,0.02542141]
[1748547382371,32.3,166.66,166.56,32.32]
[1748547382580,6.0011,166.61,166.56,38.3228]
[1748547383171,6.0014,166.6,166.56,38.3228]
[1748547383371,6.03999311,166.6,166.56,32.32]
[1748547383782,0.03859311,166.6,166.56,32.32]
[1748547383971,0.03859311,166.6,166.56,38.3225]
[1748547384572,0.03859311,166.6,166.57,6.0024]
[1748547384775,2.0657,166.68,166.57,0.03950014]
[1748547384973,32.24,166.68,166.56,32.32]
[1748547385476,5.9992,166.67,166.56,32.32]
[1748547385673,32.24,166.68,166.62,6.0004]
[1748547385975,0.03930953,166.67,166.63,0.03950014]
[1748547386178,0.03903381,166.67,166.66,5.9992]
[1748547386381,0.03903381,166.67,166.63,2.03520014]
[1748547387074,0.03903381,166.67,166.63,8.03530014]
[1748547387678,6.03813381,166.67,166.63,8.03530014]
[1748547387882,0.03903381,166.67,166.63,8.03530014]
[1748547388282,6.03803381,166.67,166.63,8.03530014]
[1748547388483,0.03903381,166.67,166.63,0.03950014]
[1748547389079,6.03813381,166.67,166.63,6.03970014]
[1748547389280,0.03903381,166.67,166.63,0.03950014]
[1748547389879,0.03903381,166.67,166.64,5.9996]
[1748547390381,0.03903381,166.67,166.65,5.9996]
[1748547390580,0.03903381,166.67,166.63,1.99450014]
[1748547390783,0.03903381,166.67,166.66,5.9992]
[1748547390976,5.9975,166.71,166.63,1.99450014]
[1748547391172,32.26,166.74,166.64,1.9425]
[1748547391376,5.9981,166.7,166.66,5.999]
[1748547391683,32.26,166.74,166.64,1.9425]
[1748547392184,0.03879053,166.71,166.67,0.04216721]
[1748547392573,6.03649053,166.71,166.67,0.04216721]
[1748547392778,0.03879053,166.71,166.67,0.04216721]
[1748547393677,5.9979,166.7,166.67,0.04216721]
[1748547394076,0.03879053,166.71,166.67,0.04216721]
[1748547395080,5.9984,166.69,166.67,0.04216721]
[1748547395275,0.03879053,166.71,166.67,0.04216721]
[1748547398379,5.9966,166.74,166.67,0.04216721]
[1748547398781,32.26,166.77,166.67,0.04216721]
[1748547398984,5.9963,166.74,166.7,5.9975]
[1748547399185,32.26,166.77,166.7,5.9975]
[1748547399481,32.26,166.77,166.72,0.0444493]
[1748547399482,5.9969,166.73,166.72,0.0444493]
[1748547400979,0.04229506,166.75,166.72,0.0444493]
[1748547402082,5.9946,166.79,166.76,5.9955]
[1748547402587,2.0348,166.82,166.74,5.9961]
[1748547402787,2.0348,166.82,166.71,4.0593]
[1748547403181,0.04542884,166.78,166.75,0.04166046]
[1748547403383,5.9956,166.77,166.75,0.04166046]
[1748547403587,0.04542884,166.78,166.75,0.04166046]
[1748547403983,5.9955,166.77,166.75,0.04166046]
[1748547404785,5.9956,166.76,166.75,0.04166046]
[1748547405683,0.04542884,166.78,166.75,0.04166046]
[1748547406886,6.04042884,166.78,166.75,6.03746046]
[1748547407086,0.04542884,166.78,166.75,0.04166046]
[1748547407491,0.04542884,166.78,166.76,5.9953]
[1748547407983,0.04542884,166.78,166.75,0.04166046]
[1748547408183,0.04542884,166.78,166.76,5.9956]
[1748547408386,0.04542884,166.78,166.75,0.04166046]
[1748547409690,0.04542884,166.78,166.76,5.9955]
[1748547410385,0.04542884,166.78,166.77,5.9953]
[1748547412188,0.04542884,166.78,166.77,38.2353]
[1748547412494,32.24,166.86,166.77,32.24]
[1748547412889,5.9942,166.8,166.77,38.2351]
[1748547413086,32.24,166.86,166.77,32.24]
[1748547413393,5.9938,166.81,166.8,0.04325661]
[1748547413886,0.03970929,166.83,166.74,32.18]
[1748547414091,32.24,166.86,166.74,38.1763]
[1748547414694,32.24,166.86,166.74,32.18]
[1748547414891,0.04457315,166.82,166.78,0.04121227]
[1748547415196,6.03807315,166.82,166.78,38.21601227]
[1748547415896,6.03807315,166.82,166.79,5.9945]
[1748547416299,5.994,166.81,166.78,38.21611227]
[1748547416795,5.994,166.81,166.78,32.22121227]
[1748547417497,0.04457315,166.82,166.78,32.22121227]
[1748547417893,5.9939,166.81,166.78,38.21591227]
[1748547418496,5.9939,166.81,166.79,5.9945]
[1748547418695,6.03817315,166.82,166.78,32.22121227]
[1748547419098,6.03817315,166.82,166.79,5.9943]
[1748547420401,0.04457315,166.82,166.78,32.22121227]
[1748547420602,32.18,166.91,166.79,6.0673]
[1748547421305,5.9922,166.86,166.79,6.0673]
[1748547421498,0.04046745,166.84,166.81,0.04241739]
[1748547421697,0.04046745,166.84,166.82,32.18]
[1748547422294,0.04046745,166.84,166.83,5.9931]
[1748547422494,1.9146,166.92,166.82,32.18]
[1748547422700,32.18,166.94,166.82,32.18]
[1748547422899,5.9908,166.9,166.87,5.9914]
[1748547423100,32.18,166.94,166.86,32.18]
[1748547423301,5.9917,166.87,166.86,32.18]
[1748547426113,5.992,166.86,166.85,0.04014707]
[1748547428214,5.9918,166.87,166.85,0.04014707]
[1748547428411,0.04577669,166.88,166.85,0.04014707]
[1748547428611,0.04577669,166.88,166.85,32.22014707]
[1748547428811,0.04577669,166.88,166.86,5.9918]
[1748547429315,0.04577669,166.88,166.85,32.22014707]
[1748547429511,32.18,167.0,166.85,32.22014707]
[1748547429715,1.9921,167.0,166.88,16.70234576]
[1748547429914,1.9921,167.0,166.95,5.9885]
[1748547430111,32.18,167.03,166.94,32.18]
[1748547430315,1.9921,167.05,166.95,32.18]
[1748547430512,0.04149059,167.02,166.98,0.03871638]
[1748547430716,0.0397896,167.02,166.98,0.0425242]
[1748547430918,5.9874,166.99,166.98,0.0425242]
[1748547434516,5.9895,166.94,166.91,32.16]
[1748547434719,32.16,167.02,166.91,32.16]
[1748547434918,32.16,167.02,166.91,38.15]
[1748547435219,32.16,167.02,166.91,32.16]
[1748547435616,5.9884,166.96,166.95,0.04464264]
[1748547436217,1.998,166.97,166.87,32.16]
[1748547436419,1.998,166.97,166.85,32.16]
[1748547436420,2.0257,166.95,166.85,32.16]
[1748547436715,32.16,166.94,166.85,32.16]
[1748547437320,0.03861071,166.91,166.88,0.04325823]
[1748547438622,5.991,166.89,166.88,0.04325823]
[1748547439615,5.9907,166.9,166.88,0.04325823]
[1748547439826,0.03861071,166.91,166.88,0.04325823]
[1748547440424,5.991,166.89,166.88,0.04325823]
[1748547441016,5.9931,166.83,166.79,32.16]
[1748547441221,2.0013,166.88,166.79,32.16]
[1748547441925,0.04207117,166.85,166.82,0.04126325]
[1748547442320,5.9933,166.83,166.82,0.04126325]
[1748547444427,0.04207117,166.85,166.82,0.04126325]
[1748547445132,0.04207117,166.85,166.82,6.03446325]
[1748547446032,0.04207117,166.85,166.82,0.04126325]
[1748547446533,5.993,166.84,166.82,0.04126325]
[1748547447333,0.04207117,166.85,166.82,6.03466325]
[1748547447537,0.04207117,166.85,166.82,0.04126325]
[1748547447931,0.04207117,166.85,166.82,6.03446325]
[1748547447932,6.03457117,166.85,166.82,6.03446325]
[1748547448133,0.04207117,166.85,166.82,0.04126325]
[1748547448333,5.9931,166.84,166.82,0.04126325]
[1748547449528,5.9931,166.83,166.82,0.04126325]
[1748547450136,5.9947,166.79,166.76,32.12]
[1748547450331,32.12,166.86,166.74,32.12]
[1748547450638,5.9952,166.78,166.74,32.12]
[1748547450831,32.12,166.86,166.74,32.12]
[1748547451035,32.12,166.86,166.79,5.9944]
[1748547451231,0.04259703,166.84,166.81,0.03903069]
[1748547451842,5.9935,166.82,166.81,0.03903069]
[1748547455148,5.9933,166.83,166.81,0.03903069]
[1748547455346,0.04259703,166.84,166.81,0.03903069]
[1748547455747,5.9931,166.83,166.81,0.03903069]
[1748547456042,0.04259703,166.84,166.81,0.03903069]
[1748547456641,0.04259703,166.84,166.83,5.9931]
[1748547457744,5.9915,166.88,166.81,2.03643069]
[1748547458044,32.12,166.92,166.82,1.9901]
[1748547458241,32.12,166.92,166.85,5.9922]
[1748547458446,32.12,166.92,166.82,1.9901]
[1748547458845,5.9918,166.87,166.85,0.03943399]
[1748547459043,0.04188134,166.89,166.85,0.03943399]
[1748547459938,5.992,166.86,166.85,0.03943399]
[1748547460342,0.04188134,166.89,166.85,0.03943399]
[1748547460546,5.9919,166.87,166.85,0.03943399]
[1748547461141,0.04188134,166.89,166.85,0.03943399]
[1748547462247,6.03288134,166.89,166.86,5.9918]
[1748547462753,6.03288134,166.89,166.87,5.9917]
[1748547464248,0.04188134,166.89,166.87,5.9917]
[1748547464951,0.04188134,166.89,166.88,5.9913]
[1748547465845,2.1084,166.97,166.9,5.9903]
[1748547466045,5.9897,166.93,166.9,5.9903]
[1748547466447,2.1084,166.97,166.91,5.99]
[1748547466649,5.9892,166.94,166.88,32.12]
[1748547466858,0.04062248,166.93,166.89,0.04294103]
[1748547467059,0.04062248,166.93,166.89,6.03374103]
[1748547467254,0.04062248,166.93,166.89,0.04294103]
[1748547467557,32.14062248,166.93,166.82,1.9901]
[1748547467858,5.9912,166.89,166.82,1.9901]
[1748547468058,5.9912,166.89,166.86,5.9918]
[1748547468257,5.9912,166.89,166.84,32.1]
[1748547468460,0.04430351,166.88,166.85,0.0430742]
[1748547468855,0.04430351,166.88,166.87,5.9917]
[1748547469251,0.04430351,166.88,166.86,5.9919]
[1748547470155,0.04430351,166.88,166.87,5.9917]
[1748547470354,0.04430351,166.88,166.85,0.0430742]
[1748547470752,6.03570351,166.88,166.85,6.0351742]
[1748547473263,0.04430351,166.88,166.85,0.0430742]
[1748547474174,5.992,166.87,166.85,0.0430742]
[1748547475469,5.992,166.86,166.85,0.0430742]
[1748547475970,0.04430351,166.88,166.85,0.0430742]
[1748547476966,5.9918,166.87,166.85,0.0430742]
[1748547477173,0.04430351,166.88,166.85,0.0430742]
[1748547477369,0.04430351,166.88,166.87,5.9917]
[1748547478078,32.1,166.95,166.85,0.0430742]
[1748547478274,2.1084,166.97,166.85,0.0430742]
[1748547478474,5.9902,166.92,166.84,32.1]
[1748547479074,0.04454995,166.9,166.89,5.9906]
[1748547479475,0.04454995,166.9,166.86,0.0459354]
[1748547479776,0.04454995,166.9,166.87,5.9914]
[1748547480174,0.04454995,166.9,166.86,6.0378354]
[1748547480369,0.04454995,166.9,166.86,0.0459354]
[1748547480577,6.03534995,166.9,166.86,0.0459354]
[1748547480774,6.03534995,166.9,166.87,5.9916]
[1748547481274,0.04454995,166.9,166.86,0.0459354]
[1748547481873,0.04454995,166.9,166.89,5.9909]
[1748547483270,2.1084,166.97,166.89,5.9909]
[1748547483471,5.9871,167.0,166.89,3.9786]
[1748547483681,2.0171,167.02,166.9,16.70234576]
[1748547483880,32.04,167.04,166.9,16.70234576]
[1748547484077,5.9867,167.01,166.9,136.14234576]
[1748547484379,10.0,167.06,166.9,136.14234576]
[1748547484380,0.04019202,166.97,166.96,5.9884]
[1748547484677,0.04324052,166.98,166.96,32.04]
[1748547484879,0.03810011,166.99,166.96,32.04]
[1748547485080,0.04593229,166.99,166.98,5.9874]
[1748547485280,0.04593229,166.99,166.96,32.07913173]
[1748547485581,5.9878,166.98,166.96,32.07913173]
[1748547485873,0.04593229,166.99,166.96,32.07913173]
[1748547486073,0.04593229,166.99,166.96,38.06733173]
[1748547486581,0.04593229,166.99,166.96,32.07913173]
[1748547486880,0.04593229,166.99,166.98,5.9877]
[1748547487379,0.04593229,166.99,166.96,32.07913173]
[1748547488177,6.03343229,166.99,166.96,38.06733173]
[1748547488881,5.9877,166.98,166.96,38.06733173]
[1748547489475,0.04593229,166.99,166.96,32.07913173]
[1748547490177,5.9881,166.97,166.96,0.03913173]